fUST/lending_fUST_20250901
["ID","MTS","AMOUNT","RATE_DAILY","PERIOD"]
[382663146,1756699835923,-300.0,0.00014384,2]
[382663147,1756699835933,-1200.0,0.00014385,2]
[382663148,1756699835942,-601.1838662,0.00014387,2]
[382663149,1756699835952,-480.0,0.00014387,2]
[382663150,1756699835961,-581.86,0.00014387,2]
[382663151,1756699835971,-597.26271381,0.00014387,2]
[382663165,1756699838377,-233.11728619,0.00014387,2]
[382663167,1756699838387,-480.0,0.00014387,2]
[382663169,1756699838396,-480.0,0.00014387,2]
[382663171,1756699838405,-578.64,0.00014387,2]
[382663172,1756699838414,-194.90363035,0.00014387,2]
[382663175,1756699838425,-1041.5700025,0.00014387,2]
[382663405,1756699840675,-0.04377039,0.00014387,2]
[382663410,1756699840713,-291.98724638,0.00014387,2]
[382663524,1756699922376,10000.01,0.00013396,2]
[382663525,1756699922398,375.5099165,0.00013396,2]
[382663526,1756699972617,294.0,0.00012329,2]
[382663527,1756700241228,4762.34034877,0.0001396,2]
[382663528,1756700332264,806.080245,0.00013815,2]
[382663529,1756700332763,1151.39784874,0.00013954,2]
[382663530,1756700333162,575.69892437,0.00013954,2]
[382663531,1756700392680,-221.42610517,0.000142,2]
[382663532,1756700410533,2034.98271662,0.00013369,2]
[382663533,1756700410556,7965.01728338,0.00013369,2]
[382663534,1756700438658,1998.218026,0.00013699,2]
[382663535,1756700462315,36.77469062,0.0001395,2]
[382663536,1756700462337,124.9298352,0.0001395,2]
[382663537,1756700504484,-186.02650841,0.00014058,2]
[382663538,1756700507700,-152.0,0.00014058,2]
[382663539,1756700509281,-199.51661605,0.00014058,2]
[382663540,1756700512122,-218.82869721,0.00014058,2]
[382663541,1756700513658,-239.85432031,0.00014058,2]
[382663542,1756700522556,161.70452582,0.0001395,2]
[382663543,1756700527374,1127.87412,0.00013699,2]
[382663545,1756700582151,161.70452582,0.0001395,2]
[382663546,1756700642284,161.70452581,0.0001395,2]
[382663547,1756700646408,782.34775286,0.00013917,2]
[382663549,1756700690998,666.0,0.00013384,2]
[382663550,1756700702437,161.70452582,0.0001395,2]
[382663551,1756700783464,1100.0,0.00030697,60]
[382663552,1756700790744,-228.79122756,0.00014058,2]
[382663553,1756700822416,158.32919718,0.00013898,2]
[382663554,1756700871162,1549.78266728,0.00013917,2]
[382663556,1756700882281,158.32919717,0.00013898,2]
[382663558,1756700932873,1166.18,0.00030698,60]
[382663559,1756700933674,-259.08012882,0.00014058,2]
[382663560,1756700935461,-343.74495754,0.00014058,2]
[382663563,1756700941493,-218.4163968,0.00014058,2]
[382663564,1756700943034,-367.3281334,0.00014058,2]
[382663565,1756700946367,-590.00427828,0.00014058,2]
[382663566,1756700946391,-56.42113973,0.000142,2]
[382663567,1756700953269,-1722.15275511,0.000142,2]
[382663568,1756700953291,-5654.26356311,0.00014285,2]
[382663569,1756700963833,5000.0,0.0001611,6]
[382663571,1756700987484,5000.0,0.0001611,6]
[382663586,1756701032601,-188.91544412,0.00014236,2]
[382663587,1756701032612,-184.53130991,0.00014236,2]
[382663636,1756701038567,-79568.5208183,0.00014095,2]
[382663638,1756701038577,-315.46869009,0.00014236,2]
[382663640,1756701038587,-186.06284832,0.00014236,2]
[382663642,1756701038596,-500.0,0.00014236,2]
[382663644,1756701038606,-500.0,0.00014236,2]
[382663646,1756701038615,-500.0,0.00014236,2]
[382663648,1756701038624,-500.0,0.00014236,2]
[382663650,1756701038634,-500.0,0.00014236,2]
[382663652,1756701038643,-417.81472711,0.00014236,2]
[382663654,1756701038652,-500.0,0.00014236,2]
[382663655,1756701038662,-251.01248135,0.00014236,2]
[382663656,1756701038671,-500.0,0.00014236,2]
[382663657,1756701038680,-500.0,0.00014236,2]
[382663658,1756701038689,-79568.5208183,0.00014237,2]
[382663659,1756701038698,-300.0,0.00014383,2]
[382663660,1756701038707,-480.0,0.00014384,2]
[382663661,1756701038718,-480.0,0.00014384,2]
[382663662,1756701038728,-589.94,0.00014384,2]
[382663663,1756701038739,-841.91,0.00014384,2]
[382663685,1756701039065,-480.0,0.00014384,2]
[382663688,1756701039086,-480.0,0.00014384,2]
[382663691,1756701039102,-480.0,0.00014384,2]
[382663693,1756701039111,-733.59,0.00014384,2]
[382663695,1756701039120,-194.02137911,0.00014385,2]
[382663697,1756701039129,-480.0,0.00014385,2]
[382663699,1756701039138,-480.0,0.00014385,2]
[382663701,1756701039147,-1189.28,0.00014385,2]
[382663703,1756701039159,-634.16,0.00014385,2]
[382663705,1756701039168,-856.86,0.00014385,2]
[382663707,1756701039177,-919.48,0.00014385,2]
[382663709,1756701039187,-480.0,0.00014385,2]
[382663711,1756701039196,-480.0,0.00014385,2]
[382663713,1756701039206,-480.0,0.00014385,2]
[382663715,1756701039215,-480.0,0.00014385,2]
[382663717,1756701039225,-480.0,0.00014385,2]
[382663719,1756701039234,-599.89,0.00014385,2]
[382663721,1756701039243,-480.0,0.00014385,2]
[382663723,1756701039252,-602.96,0.00014385,2]
[382663725,1756701039261,-480.0,0.00014385,2]
[382663727,1756701039270,-654.77,0.00014385,2]
[382663729,1756701039279,-480.0,0.00014385,2]
[382663731,1756701039289,-480.0,0.00014385,2]
[382663733,1756701039298,-769.18,0.00014385,2]
[382663735,1756701039307,-652.62,0.00014385,2]
[382663737,1756701039316,-835.71,0.00014385,2]
[382663739,1756701039326,-490.4,0.00014385,2]
[382663741,1756701039335,-683.7,0.00014385,2]
[382663743,1756701039346,-480.0,0.00014385,2]
[382663745,1756701039355,-480.0,0.00014385,2]
[382663747,1756701039364,-480.0,0.00014385,2]
[382663749,1756701039374,-480.0,0.00014385,2]
[382663751,1756701039383,-480.0,0.00014385,2]
[382663753,1756701039392,-480.0,0.00014385,2]
[382663755,1756701039402,-480.0,0.00014385,2]
[382663757,1756701039412,-480.0,0.00014385,2]
[382663759,1756701039421,-480.0,0.00014385,2]
[382663761,1756701039430,-480.0,0.00014385,2]
[382663763,1756701039440,-846.76,0.00014385,2]
[382663765,1756701039451,-549.92,0.00014385,2]
[382663767,1756701039460,-480.0,0.00014385,2]
[382663769,1756701039469,-1499.81,0.00014385,2]
[382663771,1756701039478,-485.01,0.00014385,2]
[382663773,1756701039488,-480.0,0.00014385,2]
[382663775,1756701039497,-519.28,0.00014385,2]
[382663778,1756701039506,-480.0,0.00014385,2]
[382663780,1756701039526,-480.0,0.00014385,2]
[382663782,1756701039536,-758.33,0.00014385,2]
[382663785,1756701039547,-559.16,0.00014385,2]
[382663787,1756701039557,-480.0,0.00014385,2]
[382663789,1756701039570,-762.81,0.00014385,2]
[382663791,1756701039580,-480.0,0.00014385,2]
[382663793,1756701039590,-543.1,0.00014385,2]
[382663795,1756701039600,-480.0,0.00014385,2]
[382663797,1756701039610,-480.0,0.00014385,2]
[382663799,1756701039619,-583.14,0.00014385,2]
[382663801,1756701039629,-480.0,0.00014385,2]
[382663803,1756701039639,-647.56,0.00014385,2]
[382663805,1756701039648,-805.46,0.00014385,2]
[382663807,1756701039658,-480.0,0.00014385,2]
[382663809,1756701039667,-1323.93,0.00014385,2]
[382663811,1756701039677,-480.0,0.00014385,2]
[382663813,1756701039687,-480.0,0.00014385,2]
[382663815,1756701039696,-480.0,0.00014385,2]
[382663817,1756701039706,-480.0,0.00014385,2]
[382663819,1756701039716,-741.84,0.00014385,2]
[382663821,1756701039726,-480.0,0.00014385,2]
[382663823,1756701039737,-480.0,0.00014385,2]
[382663825,1756701039747,-1185.11,0.00014385,2]
[382663827,1756701039756,-480.0,0.00014385,2]
[382663829,1756701039766,-625.56,0.00014385,2]
[382663831,1756701039776,-2625.8,0.00014385,2]
[382663833,1756701039786,-480.0,0.00014385,2]
[382663835,1756701039796,-634.08,0.00014385,2]
[382663837,1756701039806,-3731.59,0.00014385,2]
[382663839,1756701039816,-308.07723876,0.00014386,2]
[382663841,1756701039825,-480.0,0.00014386,2]
[382663844,1756701039835,-480.0,0.00014386,2]
[382663846,1756701039845,-480.0,0.00014386,2]
[382663848,1756701039855,-481.66480232,0.00014386,2]
[382663850,1756701039865,-480.0,0.00014386,2]
[382663852,1756701039875,-480.0,0.00014386,2]
[382663854,1756701039884,-480.0,0.00014386,2]
[382663856,1756701039894,-480.0,0.00014386,2]
[382663858,1756701039903,-480.0,0.00014386,2]
[382663860,1756701039914,-480.0,0.00014386,2]
[382663862,1756701039923,-480.0,0.00014386,2]
[382663864,1756701039933,-480.0,0.00014386,2]
[382663866,1756701039943,-480.0,0.00014386,2]
[382663868,1756701039954,-480.0,0.00014386,2]
[382663870,1756701039964,-480.0,0.00014386,2]
[382663872,1756701039974,-325.97501638,0.00014386,2]
[382663874,1756701039984,-480.0,0.00014386,2]
[382663876,1756701039994,-480.0,0.00014386,2]
[382663878,1756701040005,-480.0,0.00014386,2]
[382663880,1756701040016,-480.0,0.00014386,2]
[382663882,1756701040025,-633.79,0.00014386,2]
[382663884,1756701040034,-480.0,0.00014386,2]
[382663886,1756701040044,-405.44511087,0.00014386,2]
[382663888,1756701040054,-192.36864164,0.00014386,2]
[382663890,1756701040063,-480.0,0.00014386,2]
[382663892,1756701040074,-480.0,0.00014386,2]
[382663894,1756701040083,-493.77312248,0.00014386,2]
[382663896,1756701040093,-480.0,0.00014386,2]
[382663898,1756701040103,-480.0,0.00014386,2]
[382663900,1756701040113,-480.0,0.00014386,2]
[382663902,1756701040123,-480.0,0.00014386,2]
[382663904,1756701040133,-480.0,0.00014386,2]
[382663906,1756701040143,-1075.32,0.00014386,2]
[382663908,1756701040152,-480.0,0.00014386,2]
[382663910,1756701040163,-480.0,0.00014386,2]
[382663912,1756701040172,-687.3,0.00014386,2]
[382663914,1756701040183,-586.9,0.00014386,2]
[382663916,1756701040193,-480.0,0.00014386,2]
[382663918,1756701040202,-3656.99,0.00014386,2]
[382663920,1756701040212,-480.0,0.00014386,2]
[382663921,1756701040221,-480.0,0.00014386,2]
[382663924,1756701040231,-480.0,0.00014386,2]
[382663926,1756701040240,-827.07,0.00014386,2]
[382663928,1756701040250,-480.0,0.00014386,2]
[382663930,1756701040260,-680.89,0.00014386,2]
[382663932,1756701040269,-1445.0,0.00014386,2]
[382663934,1756701040279,-480.0,0.00014386,2]
[382663936,1756701040289,-710.18,0.00014386,2]
[382663938,1756701040298,-3465.79,0.00014386,2]
[382663940,1756701040308,-480.0,0.00014386,2]
[382663942,1756701040317,-480.0,0.00014386,2]
[382663944,1756701040326,-480.0,0.00014386,2]
[382663946,1756701040336,-981.36,0.00014386,2]
[382663948,1756701040345,-480.0,0.00014386,2]
[382663950,1756701040355,-480.0,0.00014386,2]
[382663952,1756701040364,-2440.8,0.00014386,2]
[382663954,1756701040375,-480.0,0.00014386,2]
[382663956,1756701040384,-480.0,0.00014386,2]
[382663958,1756701040394,-480.0,0.00014386,2]
[382663960,1756701040404,-1072.12,0.00014386,2]
[382663962,1756701040415,-1071.78,0.00014386,2]
[382663964,1756701040424,-480.0,0.00014386,2]
[382663966,1756701040434,-480.0,0.00014386,2]
[382663968,1756701040444,-480.0,0.00014386,2]
[382663970,1756701040455,-2226.33073777,0.00014387,2]
[382663972,1756701040465,-480.0,0.00014387,2]
[382663974,1756701040474,-310.72329907,0.00014387,2]
[382663976,1756701040484,-480.0,0.00014387,2]
[382663978,1756701040493,-906.98,0.00014387,2]
[382663980,1756701040503,-480.0,0.00014387,2]
[382663982,1756701040513,-480.0,0.00014387,2]
[382663984,1756701040525,-480.0,0.00014387,2]
[382663986,1756701040535,-873.63,0.00014387,2]
[382663988,1756701040544,-480.0,0.00014387,2]
[382663990,1756701040554,-480.0,0.00014387,2]
[382663992,1756701040565,-480.0,0.00014387,2]
[382663994,1756701040574,-947.66,0.00014387,2]
[382663996,1756701040584,-480.0,0.00014387,2]
[382663998,1756701040593,-480.0,0.00014387,2]
[382664000,1756701040603,-480.0,0.00014387,2]
[382664002,1756701040612,-814.57,0.00014387,2]
[382664004,1756701040622,-480.0,0.00014387,2]
[382664006,1756701040631,-480.0,0.00014387,2]
[382664008,1756701040641,-480.0,0.00014387,2]
[382664010,1756701040650,-480.0,0.00014387,2]
[382664012,1756701040659,-810.56,0.00014387,2]
[382664014,1756701040669,-480.0,0.00014387,2]
[382664016,1756701040678,-783.62,0.00014387,2]
[382664018,1756701040688,-794.19,0.00014387,2]
[382664020,1756701040698,-822.05,0.00014387,2]
[382664022,1756701040707,-480.0,0.00014387,2]
[382664024,1756701040716,-480.0,0.00014387,2]
[382664026,1756701040726,-940.72,0.00014387,2]
[382664028,1756701040736,-758.61,0.00014387,2]
[382664030,1756701040746,-480.0,0.00014387,2]
[382664032,1756701040756,-1003.18,0.00014387,2]
[382664034,1756701040765,-480.0,0.00014387,2]
[382664036,1756701040775,-651.55,0.00014387,2]
[382664038,1756701040785,-480.0,0.00014387,2]
[382664040,1756701040794,-480.0,0.00014387,2]
[382664042,1756701040805,-1484.45,0.00014387,2]
[382664045,1756701040814,-902.83,0.00014387,2]
[382664046,1756701040824,-498.23,0.00014387,2]
[382664049,1756701040833,-977.89,0.00014387,2]
[382664051,1756701040843,-480.0,0.00014387,2]
[382664054,1756701040852,-480.0,0.00014387,2]
[382664056,1756701040862,-480.0,0.000144,2]
[382664057,1756701040871,-779.64,0.000144,2]
[382664059,1756701040880,-1054.11,0.00014401,2]
[382664061,1756701040890,-481.71634681,0.00014401,2]
[382664063,1756701040899,-1600.48,0.00014401,2]
[382664065,1756701040909,-481.67,0.00014401,2]
[382664067,1756701040918,-939.6,0.00014401,2]
[382664069,1756701040928,-480.0,0.00014401,2]
[382664071,1756701040938,-1257.24652704,0.00014403,2]
[382664073,1756701040949,-480.0,0.00014503,2]
[382664076,1756701040959,-480.0,0.00014503,2]
[382664078,1756701040969,-480.0,0.00014503,2]
[382664080,1756701040978,-480.0,0.00014503,2]
[382664082,1756701040992,-932.9,0.00014503,2]
[382664083,1756701041002,-480.0,0.00014503,2]
[382664085,1756701041011,-480.0,0.00014503,2]
[382664087,1756701041020,-480.0,0.00014503,2]
[382664089,1756701041031,-480.0,0.00014503,2]
[382664092,1756701041040,-482.51098347,0.00014503,2]
[382664094,1756701041051,-480.0,0.00014503,2]
[382664096,1756701041061,-480.0,0.00014503,2]
[382664098,1756701041072,-480.0,0.00014503,2]
[382664100,1756701041082,-616.84,0.00014503,2]
[382664102,1756701041091,-480.0,0.00014503,2]
[382664104,1756701041101,-485.86,0.00014503,2]
[382664106,1756701041111,-480.0,0.00014503,2]
[382664108,1756701041120,-480.0,0.00014503,2]
[382664110,1756701041130,-480.0,0.00014503,2]
[382664112,1756701041140,-296.77708557,0.00014503,2]
[382664114,1756701041150,-492.7,0.00014503,2]
[382664116,1756701041160,-481.69695637,0.00014503,2]
[382664118,1756701041169,-480.0,0.00014503,2]
[382664120,1756701041179,-480.0,0.00014503,2]
[382664122,1756701041189,-565.98,0.00014503,2]
[382664124,1756701041198,-480.0,0.00014503,2]
[382664126,1756701041213,-480.0,0.00014503,2]
[382664128,1756701041223,-480.0,0.00014503,2]
[382664130,1756701041240,-992.24,0.00014503,2]
[382664132,1756701041251,-480.0,0.00014503,2]
[382664134,1756701041261,-480.0,0.00014503,2]
[382664136,1756701041271,-480.0,0.00014503,2]
[382664138,1756701041281,-480.0,0.00014503,2]
[382664140,1756701041291,-480.0,0.00014503,2]
[382664142,1756701041301,-480.0,0.00014503,2]
[382664144,1756701041311,-480.0,0.00014503,2]
[382664146,1756701041320,-480.0,0.00014503,2]
[382664148,1756701041330,-480.0,0.00014503,2]
[382664150,1756701041339,-480.0,0.00014503,2]
[382664152,1756701041350,-480.0,0.00014503,2]
[382664154,1756701041359,-982.34,0.00014503,2]
[382664156,1756701041368,-480.0,0.00014503,2]
[382664158,1756701041378,-480.0,0.00014503,2]
[382664160,1756701041388,-480.0,0.00014503,2]
[382664162,1756701041398,-739.26,0.00014503,2]
[382664164,1756701041407,-482.1141293,0.00014503,2]
[382664166,1756701041418,-480.0,0.00014503,2]
[382664168,1756701041428,-480.0,0.00014503,2]
[382664170,1756701041438,-970.43,0.00014503,2]
[382664172,1756701041447,-480.0,0.00014503,2]
[382664174,1756701041456,-480.0,0.00014503,2]
[382664176,1756701041466,-480.0,0.00014503,2]
[382664178,1756701041475,-480.0,0.00014503,2]
[382664180,1756701041486,-475.17893973,0.00014503,2]
[382664182,1756701041495,-1064.87,0.00014503,2]
[382664184,1756701041505,-889.02,0.00014503,2]
[382664186,1756701041514,-910.92,0.00014503,2]
[382664188,1756701041524,-480.0,0.00014503,2]
[382664190,1756701041536,-480.0,0.00014503,2]
[382664192,1756701041546,-480.0,0.00014503,2]
[382664194,1756701041556,-480.0,0.00014503,2]
[382664197,1756701041566,-480.0,0.00014503,2]
[382664199,1756701041575,-480.0,0.00014503,2]
[382664201,1756701041584,-550.96,0.00014503,2]
[382664202,1756701041593,-501.76,0.00014503,2]
[382664203,1756701041603,-480.0,0.00014503,2]
[382664204,1756701041612,-480.0,0.00014503,2]
[382664205,1756701041621,-480.0,0.00014503,2]
[382664206,1756701041634,-480.0,0.00014503,2]
[382664207,1756701041643,-480.0,0.00014503,2]
[382664208,1756701041651,-480.0,0.00014503,2]
[382664209,1756701041660,-480.0,0.00014503,2]
[382664210,1756701041670,-604.49,0.00014503,2]
[382664211,1756701041680,-480.0,0.00014503,2]
[382664212,1756701041689,-480.0,0.00014503,2]
[382664213,1756701041699,-490.04034868,0.00014503,2]
[382664214,1756701041708,-480.0,0.00014503,2]
[382664215,1756701041718,-480.0,0.00014503,2]
[382664216,1756701041727,-545.18,0.00014503,2]
[382664217,1756701041737,-461.84390019,0.00014503,2]
[382664218,1756701041747,-480.0,0.00014503,2]
[382664219,1756701041756,-436.92971865,0.00014503,2]
[382664220,1756701041765,-781.84,0.00014503,2]
[382664221,1756701041775,-480.0,0.00014503,2]
[382664222,1756701041784,-480.0,0.00014503,2]
[382664223,1756701041794,-480.0,0.00014503,2]
[382664224,1756701041803,-482.56,0.00014503,2]
[382664225,1756701041812,-480.0,0.00014503,2]
[382664226,1756701041822,-480.0,0.00014503,2]
[382664227,1756701041832,-480.0,0.00014503,2]
[382664228,1756701041841,-480.0,0.00014503,2]
[382664229,1756701041851,-480.0,0.00014503,2]
[382664230,1756701041860,-480.0,0.00014503,2]
[382664231,1756701041870,-480.0,0.00014503,2]
[382664232,1756701041879,-793.14,0.00014503,2]
[382664233,1756701041888,-539.81,0.00014503,2]
[382664234,1756701041897,-482.26617379,0.00014503,2]
[382664235,1756701041907,-480.0,0.00014503,2]
[382664236,1756701041916,-480.0,0.00014503,2]
[382664237,1756701041925,-596.03,0.00014503,2]
[382664238,1756701041934,-534.91,0.00014503,2]
[382664239,1756701041943,-480.0,0.00014503,2]
[382664240,1756701041952,-480.0,0.00014503,2]
[382664241,1756701041962,-480.0,0.00014503,2]
[382664242,1756701041971,-480.0,0.00014503,2]
[382664243,1756701041983,-480.0,0.00014503,2]
[382664244,1756701041992,-480.0,0.00014503,2]
[382664245,1756701042002,-480.0,0.00014503,2]
[382664246,1756701042011,-480.0,0.00014503,2]
[382664248,1756701042021,-480.0,0.00014503,2]
[382664250,1756701042031,-480.0,0.00014503,2]
[382664252,1756701042042,-480.0,0.00014503,2]
[382664254,1756701042051,-728.83,0.00014503,2]
[382664256,1756701042063,-732.69,0.00014503,2]
[382664258,1756701042073,-480.0,0.00014503,2]
[382664260,1756701042083,-1382.49,0.00014503,2]
[382664262,1756701042093,-480.0,0.00014503,2]
[382664264,1756701042103,-480.0,0.00014503,2]
[382664267,1756701042112,-480.0,0.00014503,2]
[382664268,1756701042122,-480.0,0.00014503,2]
[382664271,1756701042131,-480.0,0.00014503,2]
[382664273,1756701042142,-480.0,0.00014503,2]
[382664274,1756701042151,-480.0,0.00014503,2]
[382664277,1756701042163,-480.0,0.00014503,2]
[382664278,1756701042174,-480.0,0.00014503,2]
[382664280,1756701042184,-480.0,0.00014503,2]
[382664282,1756701042195,-480.0,0.00014503,2]
[382664284,1756701042205,-480.0,0.00014503,2]
[382664287,1756701042215,-480.0,0.00014503,2]
[382664289,1756701042224,-480.0,0.00014503,2]
[382664290,1756701042235,-514.78,0.00014503,2]
[382664292,1756701042244,-558.13,0.00014503,2]
[382664295,1756701042255,-480.0,0.00014503,2]
[382664296,1756701042264,-480.0,0.00014503,2]
[382664299,1756701042274,-480.0,0.00014503,2]
[382664301,1756701042283,-480.0,0.00014503,2]
[382664303,1756701042293,-480.0,0.00014503,2]
[382664305,1756701042302,-480.0,0.00014503,2]
[382664306,1756701042312,-318.72120526,0.00014503,2]
[382664308,1756701042322,-480.0,0.00014503,2]
[382664310,1756701042331,-480.0,0.00014503,2]
[382664312,1756701042341,-480.0,0.00014503,2]
[382664315,1756701042350,-608.4,0.00014503,2]
[382664316,1756701042360,-480.0,0.00014503,2]
[382664318,1756701042369,-758.1,0.00014503,2]
[382664320,1756701042379,-480.0,0.00014503,2]
[382664322,1756701042389,-688.62,0.00014503,2]
[382664325,1756701042400,-480.0,0.00014503,2]
[382664326,1756701042409,-274.67077006,0.00014503,2]
[382664328,1756701042419,-852.54,0.00014503,2]
[382664330,1756701042429,-480.0,0.00014503,2]
[382664333,1756701042439,-480.0,0.00014503,2]
[382664335,1756701042449,-480.0,0.00014503,2]
[382664337,1756701042458,-1024.84,0.00014503,2]
[382664339,1756701042469,-776.87,0.00014535,3]
[382664341,1756701042479,-776.87,0.00014535,3]
[382664343,1756701042489,-480.0,0.00014658,2]
[382664345,1756701042499,-589.94,0.00014658,2]
[382664347,1756701042508,-841.91,0.00014658,2]
[382664349,1756701042519,-480.0,0.00014658,2]
[382664351,1756701042528,-480.0,0.00014658,2]
[382664353,1756701042538,-480.0,0.00014658,2]
[382664355,1756701042548,-733.59,0.00014658,2]
[382664357,1756701042558,-480.0,0.00014659,2]
[382664359,1756701042568,-480.0,0.00014659,2]
[382664361,1756701042577,-1189.28,0.00014659,2]
[382664363,1756701042587,-634.16,0.00014659,2]
[382664382,1756701042739,-856.86,0.00014659,2]
[382664385,1756701042774,-919.48,0.00014659,2]
[382664387,1756701042784,-480.0,0.00014659,2]
[382664389,1756701042794,-620.08695432,0.00014659,2]
[382664391,1756701042804,-480.0,0.00014659,2]
[382664393,1756701042814,-480.0,0.00014659,2]
[382664395,1756701042824,-480.0,0.00014659,2]
[382664397,1756701042834,-599.89,0.00014659,2]
[382664399,1756701042845,-480.0,0.00014659,2]
[382664401,1756701042855,-602.96,0.00014659,2]
[382664403,1756701042865,-480.0,0.00014659,2]
[382664405,1756701042874,-654.77,0.00014659,2]
[382664407,1756701042884,-480.0,0.00014659,2]
[382664409,1756701042893,-480.0,0.00014659,2]
[382664411,1756701042903,-769.18,0.00014659,2]
[382664413,1756701042912,-652.62,0.00014659,2]
[382664415,1756701042923,-835.71,0.00014659,2]
[382664417,1756701042933,-490.4,0.00014659,2]
[382664419,1756701042945,-683.7,0.00014659,2]
[382664421,1756701042955,-480.0,0.00014659,2]
[382664423,1756701042964,-480.0,0.00014659,2]
[382664425,1756701042976,-480.0,0.00014659,2]
[382664427,1756701042987,-480.0,0.00014659,2]
[382664429,1756701042998,-480.0,0.00014659,2]
[382664431,1756701043008,-480.0,0.00014659,2]
[382664433,1756701043018,-480.0,0.00014659,2]
[382664435,1756701043028,-480.0,0.00014659,2]
[382664438,1756701043037,-480.0,0.00014659,2]
[382664440,1756701043047,-846.76,0.00014659,2]
[382664442,1756701043057,-549.92,0.00014659,2]
[382664444,1756701043067,-542.02660356,0.00014659,2]
[382664446,1756701043076,-1499.81,0.00014659,2]
[382664448,1756701043086,-485.01,0.00014659,2]
[382664450,1756701043095,-480.0,0.00014659,2]
[382664452,1756701043105,-519.28,0.00014659,2]
[382664454,1756701043114,-480.0,0.00014659,2]
[382664456,1756701043123,-480.0,0.00014659,2]
[382664458,1756701043132,-758.33,0.00014659,2]
[382664460,1756701043141,-559.16,0.00014659,2]
[382664462,1756701043150,-480.0,0.00014659,2]
[382664464,1756701043159,-762.81,0.00014659,2]
[382664466,1756701043168,-543.1,0.00014659,2]
[382664468,1756701043178,-480.0,0.00014659,2]
[382664470,1756701043188,-428.87681854,0.00014659,2]
[382664472,1756701043197,-480.0,0.00014659,2]
[382664474,1756701043206,-583.14,0.00014659,2]
[382664476,1756701043216,-480.0,0.00014659,2]
[382664478,1756701043225,-647.56,0.00014659,2]
[382664480,1756701043235,-805.46,0.00014659,2]
[382664482,1756701043244,-480.0,0.00014659,2]
[382664484,1756701043254,-1323.93,0.00014659,2]
[382664486,1756701043263,-480.0,0.00014659,2]
[382664488,1756701043274,-480.0,0.00014659,2]
[382664490,1756701043284,-480.0,0.00014659,2]
[382664492,1756701043295,-480.0,0.00014659,2]
[382664494,1756701043304,-741.84,0.00014659,2]
[382664496,1756701043313,-480.0,0.00014659,2]
[382664497,1756701043322,-480.0,0.00014659,2]
[382664499,1756701043334,-1185.11,0.00014659,2]
[382664501,1756701043347,-480.0,0.00014659,2]
[382664504,1756701043357,-625.56,0.00014659,2]
[382664505,1756701043367,-2625.8,0.00014659,2]
[382664507,1756701043376,-480.0,0.00014659,2]
[382664509,1756701043386,-634.08,0.00014659,2]
[382664511,1756701043395,-3731.59,0.00014659,2]
[382664513,1756701043405,-480.0,0.0001466,2]